[Event "3rd Sharjah Challengers 2023"]
[Site "Sharjah"]
[Date "2023.05.22"]
[Round "6.6"]
[White "Liyanage, Ranindu Dilshan"]
[Black "Zaibi, Amir"]
[Result "1/2-1/2"]
[ECO "C02"]
[WhiteElo "2342"]
[BlackElo "2393"]
[Annotator "TA"]
[PlyCount "95"]
[EventDate "2023.05.16"]
[EventType "swiss"]
[EventCountry "UAE"]
[SourceTitle "playchess.com"]
[Source "ChessBase"]
[SourceQuality "1"]
[TimeControl "5400+30"]

{[%evp 15,95,1,4,-4,58,56,59,20,20,0,16,6,15,13,30,30,67,54,53,15,28,20,27,18,19,19,30,0,0,4,14,0,0,25,41,39,76,74,108,105,110,114,119,118,181,153,172,166,153,0,0,0,0,0,0,0,0,0,0,0,0,0,0,0,0,0,0,0,0,-8,-8,-8,-8,-8,-8,-15,-8,-15,-15,-15,-15,-15]} 1. e4 {[%emt 0:01:02]} e6 {[%emt 0:00:05]} 2. d4 {[%emt 0:00:22]} d5 {[%emt 0:00:06]} 3. e5 {[%emt 0:00:10]} c5 {[%emt 0:00:11]} 4. c3 {[%emt 0:00:06]} Nc6 {[%emt 0:00:20]} 5. Nf3 {[%emt 0:00:19]} Qb6 {[%emt 0:00:24]} 6. a3 {[%emt 0:00:20]} c4 {[%emt 0:00:45]} 7. Nbd2 {[%emt 0:01:26]} Na5 {[%emt 0:00:49]} 8. Rb1 {[%emt 0:00:47]} Bd7 {[%emt 0:00:26]} 9. h4 {[%emt 0:00:17] C02: French: Advance Variation.} Nb3 {[%emt 0:01:54]} (9... h6 $11) 10. Nxb3 $14 {[%emt 0:02:16] Hoping for Nbd2.} Ba4 {[%emt 0:00:05][%mdl 64] [#] Pin} 11. Be3 $146 {[%emt 0:09:22][%cal Of3d2] White is slightly better.} ({Predecessor:} 11. Nfd2 Rc8 12. f4 h5 13. f5 Bxb3 14. Nxb3 Qxb3 15. Qxb3 cxb3 16. fxe6 fxe6 17. Bb5+ {1-0 Larsen,M (2178)-Skagseth,H Arctic Chess Challenge 2010 (3)}) 11... Qxb3 {[%emt 0:00:32]} (11... Bxb3 12. Qc1) 12. Qc1 {[%emt 0:22:39]} Qc2 {[%emt 0:01:05]} 13. h5 {[%emt 0:01:45]} (13. Qxc2 {simplifies} Bxc2 14. Rc1 Ba4 15. h5) 13... h6 {[%emt 0:04:50]} 14. Be2 {[%emt 0:00:38]} Qxc1+ {[%emt 0:01:20]} 15. Rxc1 {[%emt 0:00:06]} Ne7 {[%emt 0:00:48]} 16. g4 {[%emt 0:02:35]} a5 {[%emt 0:01:30]} 17. Nd2 {[%emt 0:02:58]} Nc6 {[%emt 0:02:08]} 18. f4 {[%emt 0:00:38][%cal Bf2f4,Bf4f5][%mdl 32]} b5 {[%emt 0:01:41]} 19. O-O {[%emt 0:01:06]} Be7 {[%emt 0:02:02]} 20. f5 {[%emt 0:00:42]} Kd7 {[%emt 0:01:36]} 21. g5 {[%emt 0:11:20]} hxg5 {[%emt 0:01:43]} 22. Bg4 {[%emt 0:00:14]} Nd8 {[%emt 0:03:17]} (22... g6 {with more complications.} 23. hxg6 Rh4 24. Be2 Rh3) 23. f6 {[%emt 0:03:21]} gxf6 {[%emt 0:02:03]} 24. exf6 {[%emt 0:00:06]} Bd6 {[%emt 0:00:36]} 25. Nf3 {[%emt 0:00:11]} Bb3 {[%emt 0:07:55]} 26. Nxg5 {[%emt 0:03:05]} Kc6 {[%emt 0:12:40]} 27. Kf2 {[%emt 0:05:03]} b4 {[%emt 0:01:20]} 28. axb4 {[%emt 0:01:11]} axb4 {[%emt 0:00:04]} 29. Ra1 {[%emt 0:00:44]} Ra4 {[%emt 0:01:01]} (29... Rxa1 $16 30. Rxa1 Bc7) 30. Rxa4 $18 {[%emt 0:03:04]} Bxa4 {[%emt 0:00:03]} 31. Ra1 {[%emt 0:00:10]} Kb5 {[%emt 0:00:43] [#]} 32. Nxf7 $2 {[%emt 0:06:05] White is more active.} Nxf7 $11 {[%emt 0:00:15] The position is equal.} 33. Bxe6 {[%emt 0:00:05]} Nd8 {[%emt 0:06:33]} ({But not} 33... bxc3 34. bxc3 (34. Bxf7 $2 cxb2 35. Rb1 c3 $19) 34... Nd8 35. Bd7+ (35. Bxd5 Rxh5 36. Be4 Rh8 $11) 35... Nc6 36. h6 $16) 34. Bd7+ {[%emt 0:00:32]} ({Reject} 34. Bxd5 Rxh5 35. Be4 (35. Bxc4+ $2 Kxc4 36. Rxa4 Kd3 $19) 35... Rh2+ 36. Kf3 Ne6 $15) 34... Nc6 {[%emt 0:00:20]} 35. Bxc6+ {[%emt 0:02:38]} Kxc6 {[%emt 0:00:04]} 36. Rxa4 {[%emt 0:00:11]} bxc3 {[%emt 0:03:31]} 37. bxc3 {[%emt 0:01:31]} Rxh5 {[%emt 0:00:09][%mdl 4096] Endgame KRB-KRB} 38. Ra6+ {[%emt 0:02:08]} Kd7 {[%emt 0:00:14]} 39. Kg2 {[%emt 0:03:26]} Rf5 {[%emt 0:00:19]} 40. Bf2 {[%emt 0:00:57] And now Bh4 would win.} Rxf6 {[%emt 0:03:27]} 41. Bg3 {[%emt 0:00:25]} Be7 {[%emt 0:02:29]} 42. Rxf6 {[%emt 0:01:48]} Bxf6 {[%emt 0:00:04] KB-KB} 43. Kf3 {[%emt 0:00:10]} Ke6 {[%emt 0:05:07]} 44. Ke2 {[%emt 0:00:30]} Kf5 {[%emt 0:00:07]} 45. Kd2 {[%emt 0:00:19]} Ke4 {[%emt 0:00:12]} 46. Kc2 {[%emt 0:00:32]} Bg5 {[%emt 0:00:27]} 47. Bd6 {[%emt 0:00:29]} Bf4 {[%emt 0:00:15]} 48. Bf8 {[%emt 0:00:00] Weighted Error Value: White=0.10 (very precise) /Black=0.11 (very precise)} 1/2-1/2

[Event "3rd Sharjah Challengers 2023"]
[Site "Sharjah"]
[Date "2023.05.22"]
[Round "6.7"]
[White "Badelka, Olga"]
[Black "Lim, Zhuo Ren"]
[Result "1-0"]
[ECO "B30"]
[WhiteElo "2406"]
[BlackElo "2294"]
[Annotator "TA"]
[PlyCount "79"]
[EventDate "2023.05.16"]
[EventType "swiss"]
[EventCountry "UAE"]
[SourceTitle "playchess.com"]
[Source "ChessBase"]
[SourceQuality "1"]
[TimeControl "5400+30"]

{[%evp 9,79,18,29,16,26,20,19,16,23,23,25,18,27,35,63,60,67,62,62,50,51,56,60,51,54,59,64,58,55,41,48,31,26,36,56,65,67,75,83,52,58,58,58,39,50,16,16,16,16,16,82,79,81,81,81,81,79,75,90,77,221,214,342,334,1081,153,620,596,29977,29978,29989,29990]} 1. e4 {[%emt 0:00:03]} c5 {[%emt 0:00:38]} 2. Nc3 {[%emt 0:00:08]} Nc6 {[%emt 0:00:15]} 3. Nf3 {[%emt 0:00:07]} e5 {[%emt 0:00:34]} 4. Bc4 {[%emt 0:00:11]} d6 {[%emt 0:01:01]} 5. d3 {[%emt 0:00:20]} Be7 {[%emt 0:00:12]} 6. a4 {[%emt 0:00:08] B30: Sicilian: 2...Nc6 3 Bb5, lines without ...g6.} Nf6 {[%emt 0:01:05]} 7. Bg5 {[%emt 0:00:06]} O-O {[%emt 0:03:21]} 8. Bxf6 {[%emt 0:00:06] The position is equal.} Bxf6 {[%emt 0:00:05]} 9. Nd5 {[%emt 0:00:03]} Be6 {[%emt 0:00:32]} 10. c3 {[%emt 0:00:09]} g6 {[%emt 0:00:29]} 11. h4 {[%emt 0:03:19] [#]} Bg7 $146 {[%emt 0:01:52]} ({Predecessor:} 11... h5 12. Ne3 Qd7 13. Ng5 Kg7 14. Nxe6+ fxe6 15. g4 Rh8 16. Rg1 Kf7 17. Qf3 Ke7 18. gxh5 gxh5 {1-0 Titichoca Daza,D (2189)-Ferrufino,B (1940) Oruro op 8th 2022 (3)}) 12. h5 {[%emt 0:08:04]} Ne7 {[%emt 0:01:54]} 13. hxg6 {[%emt 0:13:33]} hxg6 {[%emt 0:01:08]} 14. Qb3 {[%emt 0:03:38] White has more active pieces.} Nxd5 {[%emt 0:01:01]} 15. Bxd5 {[%emt 0:00:04]} Qe7 {[%emt 0:02:27]} 16. Bxe6 {[%emt 0:07:38]} (16. Qxb7 Qxb7 17. Bxb7 Rab8 $17) 16... fxe6 {[%emt 0:04:17] Black is weak on the light squares} 17. Rh3 {[%emt 0:00:24]} Bf6 {[%emt 0:01:02]} 18. a5 {[%emt 0:11:25]} Kg7 {[%emt 0:03:05]} 19. a6 {[%emt 0:00:30]} Rab8 {[%emt 0:00:58]} 20. O-O-O {[%emt 0:11:52]} bxa6 {[%emt 0:02:55]} 21. Qa2 {[%emt 0:00:02]} Rh8 {[%emt 0:12:37]} 22. Rxh8 {[%emt 0:01:17]} Rxh8 {[%emt 0:01:58]} 23. Qxa6 {[%emt 0:00:12]} g5 {[%emt 0:03:27]} 24. g4 {[%emt 0:00:53]} Qd7 {[%emt 0:02:04]} 25. Kc2 {[%emt 0:01:00]} Bd8 {[%emt 0:02:15]} 26. Nd2 {[%emt 0:38:18]} ({But not} 26. Ra1 Bb6 $11) 26... Rh2 {[%emt 0:00:25]} 27. f3 {[%emt 0:00:00]} Bb6 {[%emt 0:00:33]} 28. Kc1 {[%emt 0:00:00]} Qf7 {[%emt 0:01:13]} (28... Kg6 {seems wilder.} 29. Re1 Kf6 30. Nc4 Kg6) 29. Qa4 {[%emt 0:00:00]} d5 {[%emt 0:10:23]} (29... Qb7 $11 {remains equal.}) 30. exd5 {[%emt 0:00:00]} (30. Qc6 {with more complications.} d4 31. Qd6 Kf6 32. f4) 30... exd5 {[%emt 0:00:02][%cal Oc5c4]} 31. Qc6 {[%emt 0:00:00]} Rh6 {[%emt 0:00:35]} 32. Qc8 {[%emt 0:00:00]} Rh8 {[%emt 0:00:17] [#]} 33. Qa6 {[%emt 0:00:00]} Rh2 {[%emt 0:00:24]} 34. c4 {[%emt 0:00:00]} d4 {[%emt 0:01:40]} (34... Qd7 $16 {is a better defense.}) 35. Ne4 $18 {[%emt 0:00:00]} Qxf3 {[%emt 0:05:06] [#]} (35... Rh8 $142 36. Qb5 (36. Nxg5 Qf4+ 37. Kb1 Qxg5 $17) 36... Qe8) 36. Qb7+ $1 {[%emt 0:00:00]} Kf8 $2 {[%emt 0:03:07]} (36... Qf7 37. Qb8 Qc7) 37. Qd7 $2 {[%emt 0:02:02]} (37. Qb8+ $18 {is the precise move to win.} Ke7 38. Qxe5+ (38. Nxg5 Qf4+ 39. Kb1 Qxg5 $11) 38... Kd8 39. Qd6+ (39. Nxc5 Qe3+ 40. Qxe3 dxe3 $11) (39. Nxg5 Qf2 $11) 39... Ke8 40. Qxh2 Qf4+ 41. Qxf4 gxf4 42. Rf1) 37... Qf4+ $2 {[%emt 0:05:00]} (37... Qe2 $16 38. Qd6+ Kf7 39. Qf6+ Ke8 40. Qxe5+ (40. Nxg5 $2 Qxb2#) 40... Kd7 41. Qf5+ (41. Nxc5+ Bxc5 42. Qf5+ Kd8 $11) 41... Ke8) 38. Kb1 {[%emt 0:00:07] Nd6 would be deadly.} Rh6 {[%emt 0:00:39]} 39. Nd6 {[%emt 0:01:06]} Rf6 {[%emt 0:02:52]} 40. Rh1 {[%emt 0:01:07] Artfully played by Badelka.   Weighted Error Value: White=0.17 (very precise) /Black=0.45} 1-0

[Event "3rd Sharjah Challengers 2023"]
[Site "Sharjah"]
[Date "2023.05.22"]
[Round "6.8"]
[White "Ahmad, Al Khatib"]
[Black "Haznedaroglu, Kivanc"]
[Result "*"]
[ECO "E10"]
[WhiteElo "2344"]
[BlackElo "2418"]
[Annotator "TA"]
[PlyCount "128"]
[EventDate "2023.05.16"]
[EventType "swiss"]
[EventCountry "UAE"]
[SourceTitle "playchess.com"]
[Source "ChessBase"]
[SourceQuality "1"]
[TimeControl "5400+30"]

{[%evp 9,128,41,32,31,38,39,46,41,37,31,57,54,62,66,76,57,73,74,70,28,45,45,47,40,42,29,52,17,30,0,0,0,0,-19,0,0,0,0,0,0,0,0,0,-57,-49,-62,-64,-56,-56,-59,-2,-6,-32,-72,-7,-21,0,0,0,-11,0,0,0,0,0,0,0,0,0,0,0,0,0,0,0,0,0,0,0,0,0,0,0,0,0,0,0,0,0,0,0,0,0,-12838,0,0,0,0,0,0,0,0,0,0,0,0,0,0,0,0,0,0,0,0,0,0,0,0,0,0,0]} 1. d4 {[%emt 0:03:19]} Nf6 {[%emt 0:00:17]} 2. c4 {[%emt 0:00:08]} e6 {[%emt 0:00:29]} 3. Nf3 {[%emt 0:00:08]} Nc6 {[%emt 0:04:47]} 4. a3 {[%emt 0:01:47]} d5 {[%emt 0:00:54]} 5. Nc3 {[%emt 0:02:20]} Be7 {[%emt 0:00:15]} 6. Bf4 {[%emt 0:16:59] E10: Blumenfeld Gambit.} a6 {[%emt 0:00:24]} 7. e3 {[%emt 0:04:51]} O-O {[%emt 0:05:17]} 8. h3 {[%emt 0:00:35] White is slightly better.} (8. Qc2 {looks sharper.} Nh5 9. Be5 g6 10. Rd1) 8... dxc4 {[%emt 0:05:50]} 9. Bxc4 {[%emt 0:00:30]} b5 {[%emt 0:00:02]} 10. Bd3 {[%emt 0:01:35]} Bb7 {[%emt 0:00:02]} 11. O-O {[%emt 0:01:12]} h6 {[%emt 0:07:05]} 12. Qc2 {[%emt 0:23:37] [#]} Bd6 $146 {[%emt 0:06:44]} ({Predecessor:} 12... Qd7 13. Rfd1 Nd5 14. Nxd5 exd5 15. Bh7+ Kh8 16. Bf5 Qd8 17. e4 dxe4 18. Bxe4 Bd6 19. Bxd6 Qxd6 {1-0 Batchelor,P (2327)-Starley,R (2045) GRB-ch Universities 2017 (4.2)}) 13. Ne5 {[%emt 0:00:39]} Ne7 {[%emt 0:00:09]} 14. Ne4 {[%emt 0:04:01] White is more active.} Nxe4 {[%emt 0:09:57]} 15. Bxe4 {[%emt 0:00:11]} Bxe4 {[%emt 0:00:07]} 16. Qxe4 {[%emt 0:00:05]} Nd5 {[%emt 0:00:29]} 17. Rac1 {[%emt 0:10:39]} a5 {[%emt 0:11:47]} 18. Nd3 {[%emt 0:05:32]} b4 {[%emt 0:05:01]} 19. Bxd6 {[%emt 0:02:49]} cxd6 {[%emt 0:01:45]} 20. Nf4 {[%emt 0:01:31]} Nxf4 {[%emt 0:02:32]} 21. exf4 {[%emt 0:03:06]} d5 {[%emt 0:03:06]} 22. Qe5 {[%emt 0:01:14]} bxa3 {[%emt 0:04:26]} 23. bxa3 {[%emt 0:00:08]} Qd7 {[%emt 0:00:04]} 24. Rc7 {[%emt 0:04:22]} Qa4 {[%emt 0:00:02]} 25. Rfc1 {[%emt 0:04:39]} Qxa3 {[%emt 0:03:14]} 26. R1c3 {[%emt 0:03:59]} ({White should try} 26. f5 $11 exf5 27. R1c3 Qa1+ 28. Kh2) 26... Qa1+ {[%emt 0:00:06]} 27. Kh2 $1 {[%emt 0:00:08]} Qb1 $1 {[%emt 0:00:06]} (27... g6 $2 28. f5 $18) 28. Rg3 {[%emt 0:00:37][%csl Gg3][%cal Re5g7] [#]} g6 {[%emt 0:01:29]} 29. h4 {[%emt 0:01:33] Intending h5 and mate.} Qf5 {[%emt 0:05:25]} (29... Rac8 $15) 30. Qxf5 $11 {[%emt 0:01:08]} exf5 {[%emt 0:00:01][%mdl 4096] Endgame KRR-KRR} 31. Ra3 {[%emt 0:00:51]} Rfe8 {[%emt 0:02:00]} ({Black should play} 31... a4 $17) 32. Rc5 {[%emt 0:01:13] Repels} Re2 {[%emt 0:04:56]} 33. Kg3 {[%emt 0:00:46]} a4 {[%emt 0:00:13]} 34. Rxd5 {[%emt 0:00:23]} Rb8 {[%emt 0:00:13]} 35. Ra5 {[%emt 0:00:51]} Rb3+ {[%emt 0:02:05]} 36. Rxb3 {[%emt 0:00:05]} axb3 {[%emt 0:00:01] KR-KR} 37. Rb5 {[%emt 0:00:19]} b2 {[%emt 0:00:06]} 38. Kf3 {[%emt 0:00:41]} Rc2 {[%emt 0:00:19]} 39. Ke3 {[%emt 0:00:56]} Kf8 {[%emt 0:00:14]} 40. Rb7 {[%emt 0:00:25]} Ke8 {[%emt 0:00:08]} 41. g3 {[%emt 0:00:33]} Kd8 {[%emt 0:00:13]} 42. d5 {[%emt 0:00:33]} Kc8 {[%emt 0:00:07]} 43. Rb3 {[%emt 0:00:30]} Kd7 {[%emt 0:00:22][%cal Oc2c3]} 44. Kd4 {[%emt 0:00:26] Prevents Rc3} Rxf2 {[%emt 0:02:13]} 45. Ke5 {[%emt 0:00:24]} Re2+ {[%emt 0:00:34]} 46. Kf6 {[%emt 0:00:08]} Kd6 {[%emt 0:00:04]} 47. Rb5 {[%emt 0:00:55]} Rg2 {[%emt 0:02:05]} 48. Kxf7 {[%emt 0:00:17]} Rxg3 {[%emt 0:00:21] Strongly threatening ...Rg2.} 49. Rxb2 {[%emt 0:00:15]} Kxd5 {[%emt 0:00:25] ...Ke4 would be deadly.} 50. h5 {[%emt 0:01:03]} gxh5 {[%emt 0:05:57]} 51. Re2 {[%emt 0:00:26][%mdl 8192] [#]} (51. Kf6 $11) 51... h4 $2 {[%emt 0:01:13]} (51... Rg4 $1 $19 52. Re5+ Kd4 53. Rxf5 h4) 52. Kf6 {[%emt 0:00:16] The position is equal.} h3 {[%emt 0:02:09]} 53. Kxf5 {[%emt 0:00:12]} h5 {[%emt 0:01:23] aiming for ...Kd4.} 54. Rd2+ {[%emt 0:00:20]} Kc4 {[%emt 0:00:01]} 55. Ke4 {[%emt 0:00:45]} Rg2 {[%emt 0:00:09]} 56. Rd4+ {[%emt 0:00:17]} Kc5 {[%emt 0:01:49] And now ...Re2+ would win.} 57. Rd5+ {[%emt 0:00:04]} Kc6 {[%emt 0:00:03] ...Re2+ is the strong threat.} 58. Rxh5 {[%emt 0:00:08]} h2 {[%emt 0:00:03]} 59. Kf5 {[%emt 0:00:33]} Kd6 {[%emt 0:00:27]} 60. Kf6 {[%emt 0:00:20]} Rf2 {[%emt 0:00:52]} 61. f5 {[%emt 0:00:24]} Kd5 {[%emt 0:00:40]} 62. Rh4 {[%emt 0:00:34]} Kd6 {[%emt 0:00:44]} 63. Rd4+ {[%emt 0:00:43]} Kc5 {[%emt 0:00:01]} 64. Rh4 {[%emt 0:00:07]} Kd6 {[%emt 0:00:04] Weighted Error Value: White=0.18 (very precise) /Black=0.21 (precise)} *

[Event "3rd Sharjah Challengers 2023"]
[Site "Sharjah"]
[Date "2023.05.22"]
[Round "6.9"]
[White "Tissir, Mohamed"]
[Black "Bai, Adelard"]
[Result "1/2-1/2"]
[ECO "C54"]
[WhiteElo "2354"]
[BlackElo "2409"]
[Annotator "TA"]
[PlyCount "44"]
[EventDate "2023.05.16"]
[EventType "swiss"]
[EventCountry "UAE"]
[SourceTitle "playchess.com"]
[Source "ChessBase"]
[SourceQuality "1"]
[TimeControl "5400+30"]

{[%evp 14,44,16,21,34,22,18,9,13,0,4,-12,-15,-16,-18,-13,-8,-8,0,-15,0,0,13,4,38,0,4,0,42,0,5,7,25]} 1. e4 {[%emt 0:04:00]} e5 {[%emt 0:00:33]} 2. Nf3 {[%emt 0:00:33]} Nc6 {[%emt 0:00:06]} 3. Bc4 {[%emt 0:00:14]} Nf6 {[%emt 0:00:06]} 4. d3 {[%emt 0:00:09]} Bc5 {[%emt 0:00:07]} 5. O-O {[%emt 0:06:13]} d6 {[%emt 0:05:52]} 6. c3 {[%emt 0:00:50]} O-O {[%emt 0:01:51]} 7. h3 {[%emt 1:22:01]} h6 8. Re1 {[%emt 0:00:00]} Re8 {[%emt 0:06:19] 8...Bb6 is setting a new trend. C54: Giuoco Piano: 4 c3 Nf6, main lines with 5 d4 and 5 d3.} 9. Nbd2 {[%emt 0:00:00][%cal Bb1d2,Bd2f1,Bf1g3][%mdl 32]} (9. b4 $5 Bb6 $8 10. Nbd2 $11) 9... a6 {[%emt 0:08:18]} 10. Bb3 {[%emt 0:00:00]} Be6 {[%emt 0:02:33]} 11. Nf1 {[%emt 0:00:00]} d5 {[%emt 0:10:07]} 12. Ng3 {[%emt 0:00:00]} dxe4 {[%emt 0:08:40]} 13. dxe4 {[%emt 0:00:00]} Qxd1 {[%emt 0:00:15]} 14. Rxd1 {[%emt 0:00:00]} Rad8 {[%emt 0:00:43]} 15. Rxd8 {[%emt 0:00:00]} Rxd8 {[%emt 0:00:26] [#]} 16. Kf1 $146 {[%emt 0:00:00]} ({Predecessor:} 16. Bd2 Bxb3 17. axb3 a5 18. c4 b6 19. Bc3 Bd4 20. Bxd4 Nxd4 21. Nxd4 Rxd4 22. f3 {0-1 Gutla,A (1910)-Safarli,E (2598) North American Blitz op 30th 2020 (1)}) 16... Bd7 {[%emt 0:05:04]} 17. a4 {[%emt 0:00:00]} Kf8 {[%emt 0:03:21][%cal Bg8f8,Bf8e7,Be7e6][%mdl 32]} 18. Ke2 {[%emt 0:00:00]} Ke7 {[%emt 0:06:16]} 19. Nh4 {[%emt 0:00:00]} Bb6 {[%emt 0:09:31]} 20. Nf3 {[%emt 0:00:00]} Be6 {[%emt 0:05:29]} 21. Bxe6 {[%emt 0:00:00]} Kxe6 {[%emt 0:00:28]} 22. Nd2 {[%emt 0:00:00]} a5 {[%emt 0:03:58] Not much happened in this game.   Weighted Error Value: White=0.10 (very precise) /Black=0.10 (very precise)} 1/2-1/2

[Event "3rd Sharjah Challengers 2023"]
[Site "Sharjah"]
[Date "2023.05.23"]
[Round "7.1"]
[White "Fawzy, Adham"]
[Black "Sibashvili, Giorgi"]
[Result "1/2-1/2"]
[ECO "B44"]
[WhiteElo "2495"]
[BlackElo "2408"]
[Annotator "TA"]
[PlyCount "89"]
[EventDate "2023.05.16"]
[EventType "swiss"]
[EventCountry "UAE"]
[SourceTitle "playchess.com"]
[Source "ChessBase"]
[SourceQuality "1"]
[TimeControl "5400+30"]

{[%evp 11,89,2,4,-67,-79,-68,-61,-97,-70,-79,-82,-63,-14,-14,-11,-7,-5,-8,-11,-14,-2,-6,-5,-7,-8,-45,-48,-137,0,0,0,-91,-76,-76,0,0,0,0,11,-29,-34,-77,-50,-41,-47,-60,0,-68,-60,-68,-5,-53,0,0,0,0,14,14,14,17,16,-287,7,8,14,0,0,0,0,0,0,0,0,0,0,0,0,0,0,0]} 1. e4 {[%emt 1:31:00] ChessBase II} c5 {[%emt 1:31:00]} 2. Nf3 {[%emt 0:00:30]} e6 {[%emt 0:00:30]} 3. c4 {[%emt 0:00:30]} Nc6 {[%emt 0:00:30]} 4. d4 {[%emt 0:00:30]} cxd4 {[%emt 0:00:30]} 5. Nxd4 {[%emt 0:00:30]} Nf6 {[%emt 0:00:30]} 6. Nc3 {[%emt 0:00:30]} Bb4 {[%emt 0:00:30]} 7. a3 {[%emt 0:00:30] B44: Sicilian: Taimanov: 5 Nb5.} (7. Nxc6 $11 bxc6 8. Bd3) 7... Bxc3+ $15 {[%emt 0:00:30]} 8. bxc3 {[%emt 0:00:30]} Qa5 $1 {[%emt 0:00:30]} (8... Nxe4 9. Qg4 Nxd4 10. cxd4 Qa5+ 11. Ke2 $11) 9. Nb3 {[%emt 0:00:30] Black is slightly better.} Qxc3+ {[%emt 0:00:30]} 10. Bd2 {[%emt 0:00:30]} Qe5 {[%emt 0:00:30]} 11. Bd3 {[%emt 0:00:30] [#]} d5 $146 {[%emt 0:00:30]} (11... Nxe4 $15 12. f4 Qf5) ({Predecessor:} 11... Nxe4 12. f4 Qf5 13. g4 Qg6 14. f5 exf5 15. Qe2 d5 16. cxd5 Ne5 17. Bb5+ Kf8 {1-0 Gershkovich,E-Bannik,A URS-chT Republics 01st final 1948 (6)}) 12. f4 $11 {[%emt 0:00:30]} Qc7 {[%emt 0:00:30]} 13. cxd5 {[%emt 0:00:30]} exd5 {[%emt 0:00:30]} 14. e5 {[%emt 0:00:30]} Ne4 {[%emt 0:00:30] Threatens to win with ...Qb6.} 15. Be3 {[%emt 0:00:30] Against Qb6} O-O {[%emt 0:00:30]} 16. O-O {[%emt 0:00:30]} f6 {[%emt 0:00:30]} 17. Nc5 {[%emt 0:00:30]} fxe5 {[%emt 0:00:30]} 18. Qb3 {[%emt 0:00:30]} Nf6 {[%emt 0:00:30] Strongly threatening ...Kh8.} (18... exf4 $2 19. Qxd5+ Kh8 20. Bxe4 $18) 19. Rac1 {[%emt 0:00:30] [#]} (19. fxe5 $15 Nxe5 20. Rac1) 19... Qf7 {[%emt 0:00:30]} (19... Rf7 $1 $17 {White must now prevent ...e4.} 20. fxe5 Qxe5) 20. fxe5 {[%emt 0:00:30]} Nxe5 {[%emt 0:00:30]} 21. Bb1 {[%emt 0:00:30] A strong pair of Bishops.} (21. Bd4 $11 Nc6 22. Bb2) 21... b6 {[%emt 0:00:30]} 22. Bd4 {[%emt 0:00:30]} Nc6 {[%emt 0:00:30]} (22... bxc5 $17 23. Bxe5 c4) 23. Bxf6 {[%emt 0:00:30]} gxf6 {[%emt 0:00:30]} 24. Nd3 {[%emt 0:00:30]} Na5 {[%emt 0:00:30]} 25. Qd1 {[%emt 0:00:30][%mdl 1024] White has compensation.} (25. Qb4 {keeps more tension.} Ba6 26. Qh4 f5 27. Rf3) 25... Nc4 {[%emt 0:00:30]} 26. Rf4 {[%emt 0:00:30]} Kh8 {[%emt 0:00:30]} (26... Nxa3 27. Ne5 Qe7 28. Bxh7+ Kg7 29. Rxc8 (29. Ng6 Qe3+ 30. Kh1 Rf7 $11) 29... Qxe5 30. Qg4+ Kxh7 31. Qd7+ Kg6 32. Rc7 (32. Qg4+ $2 Qg5 $19)) 27. Nb4 {[%emt 0:00:30]} Be6 {[%emt 0:00:30]} (27... Nxa3 28. Bxh7 Qxh7 29. Nxd5 $16) 28. Qd4 {[%emt 0:00:30] [#] Rh4 would be deadly.} Qg7 {[%emt 0:00:30]} (28... Ne5 $1 $15 29. Rh4 (29. Rcf1 Qg7 $17) 29... Ng6 30. Bxg6 Qxg6) 29. Bf5 {[%emt 0:00:30]} ({White should play} 29. Bxh7 $1 $11 Kxh7 30. Nxd5) 29... Bxf5 {[%emt 0:00:30]} 30. Rxf5 {[%emt 0:00:30]} Rad8 {[%emt 0:00:30]} (30... Qh6 $15 31. Rc3 Ne5) 31. Rcf1 {[%emt 0:00:30]} (31. Nxd5 $11 b5 32. Qc3) 31... Rd6 {[%emt 0:00:30]} (31... Rg8 $15 32. g3 Ne5) 32. Rxd5 {[%emt 0:00:30]} Rxd5 {[%emt 0:00:30]} 33. Nxd5 {[%emt 0:00:30]} Rg8 {[%emt 0:00:30][%csl Gg8][%cal Rg7g2]} 34. g3 {[%emt 0:00:30] Active counter play!} (34. Qxc4 $2 Qxg2#) ({But not} 34. Qxf6 Nxa3 35. Qxg7+ Kxg7 $15) 34... Ne5 {[%emt 0:00:30]} 35. Nxf6 {[%emt 0:00:30]} Ng4 {[%emt 0:00:30][%cal Og4h2] Hoping for ...Nxh2!} 36. Qd6 $2 {[%emt 0:00:30][%mdl 8192]} (36. Rf4 $11 {and White has nothing to worry.} Nxf6 37. Rxf6) 36... Nxf6 $2 {[%emt 0:00:30]} (36... Qh6 $19 {[%csl Gg4][%cal Rh6h2]} 37. h3 Qe3+ 38. Kh1 Qe2 39. Nxg4 Qxf1+ 40. Kh2 Qe2+ 41. Kg1 Qb2) 37. Rxf6 $19 {[%emt 0:00:30][%mdl 4096] Endgame KQR-KQR. The position is equal.} Qg5 {[%emt 0:00:30]} 38. Rf7 {[%emt 0:00:30] aiming for Qd4+.} Rd8 {[%emt 0:00:30]} (38... Qc1+ {with more complications.} 39. Kg2 Qc2+ 40. Kh3 Qc8+) 39. Rf8+ {[%emt 0:00:30]} Rxf8 {[%emt 0:00:30]} 40. Qxf8+ $11 {[%emt 0:00:30] KQ-KQ} Qg8 {[%emt 0:00:30]} 41. Qf6+ {[%emt 0:00:30]} Qg7 {[%emt 0:00:30]} 42. Qd8+ {[%emt 0:00:30]} Qg8 {[%emt 0:00:30]} 43. Qc7 {[%emt 0:00:30]} Qa8 {[%emt 0:00:30]} 44. h4 {[%emt 0:00:30]} Qe8 {[%emt 0:00:30]} 45. Qxa7 {[%emt 0:00:30] Weighted Error Value: White=0.32/Black=0.31} 1/2-1/2